[Event "ITT 1st Parada Jamundi 2022"]
[Site "Jamundi Valle"]
[Date "2022.12.08"]
[Round "5.1"]
[White "Henriquez Villagra, Cristobal"]
[Black "Delgado Ramirez, Neuris"]
[Result "1/2-1/2"]
[ECO "D40"]
[WhiteElo "2587"]
[BlackElo "2572"]
[Annotator "TA"]
[PlyCount "50"]
[EventDate "2022.12.05"]
[EventType "swiss"]
[EventCountry "COL"]
[SourceTitle "playchess.com"]
[Source "ChessBase"]
[SourceQuality "1"]
[TimeControl "5400+30"]

{[%evp 18,50,26,0,5,-47,0,0,0,0,0,0,0,-24,0,0,0,0,0,0,0,0,0,0,0,-8,0,0,0,0,77,-17,0,0,0]} 1. d4 {[%emt 0:01:02]} Nf6 {[%emt 0:00:11]} 2. c4 {[%emt 0:00:06]} e6 {[%emt 0:00:04]} 3. Nf3 {[%emt 0:00:04]} d5 {[%emt 0:00:05]} 4. e3 {[%emt 0:01:13]} a6 {[%emt 0:01:32]} 5. Nc3 {[%emt 0:03:13]} c5 {[%emt 0:00:39]} 6. a3 {[%emt 0:06:16]} Nc6 {[%emt 0:01:01]} 7. dxc5 {[%emt 0:00:34]} Bxc5 {[%emt 0:00:18]} 8. b4 {[%emt 0:00:02]} Bd6 {[%emt 0:02:11]} 9. Bb2 {[%emt 0:03:17]} O-O {[%emt 0:02:07]} 10. Qc2 {[%emt 0:08:22]} dxc4 {[%emt 0:05:03] [#] D40: Queen's Gambit Declined: Semi-Tarrasch with 5 e3.} 11. Rd1 $146 {[%emt 0:08:03]} ({Better is} 11. Bxc4 $11 Ne5 12. Bb3) ({Predecessor:} 11. Bxc4 b5 12. Bd3 Bb7 13. Rd1 Qc7 14. Ng5 h6 15. Nge4 Be5 16. f4 Nxe4 17. Bxe4 Bf6 18. O-O {0-1 (40) Niemann,H (2642)-Abdusattorov,N (2651) Chess.com INT 2022}) 11... Qc7 {[%emt 0:02:35]} (11... b5 $15 {deserves consideration.} 12. Ng5 Qc7 13. Nxb5 axb5 14. Bxf6 g6) 12. Bxc4 $11 {[%emt 0:02:50]} Ne5 {[%emt 0:03:55]} 13. Be2 {[%emt 0:14:30]} Bd7 {[%emt 0:09:43]} 14. Qd2 {[%emt 0:01:38]} Nxf3+ {[%emt 0:02:19]} 15. gxf3 {[%emt 0:00:04][%cal Bg2f3,Bf3f4][%mdl 32]} Be5 {[%emt 0:12:55]} 16. f4 {[%emt 0:03:17]} Bxc3 {[%emt 0:02:40]} 17. Qxc3 {[%emt 0:00:04]} Qxc3+ {[%emt 0:00:25]} 18. Bxc3 {[%emt 0:00:04]} Nd5 {[%emt 0:00:14]} 19. Ba1 {[%emt 0:04:42] A strong pair of Bishops.} Ba4 {[%emt 0:02:13] Against e4} 20. Rd2 {[%emt 0:08:22]} Rac8 {[%emt 0:04:18] ...Rc1+ is the strong threat.} 21. Bb2 {[%emt 0:00:05] Prevents Rc1+.} Nc3 {[%emt 0:01:04]} 22. Rg1 {[%emt 0:02:13] Black must now prevent Rd3.} f6 {[%emt 0:45:58]} 23. Bd3 {[%emt 0:31:59] Prevents Ne4.} Rfd8 {[%emt 0:00:30] [#]} (23... Rf7 $11 {remains equal.}) 24. f3 {[%emt 0:00:30]} ({Avoid the trap} 24. Bxc3 $2 Rxc3 25. Ke2 {[#]} (25. Bxh7+ $2 Kxh7 $19) 25... Rdxd3 $1 {[%mdl 512]} 26. Rxd3 Bb5 $19) (24. f5 $1 $16 {[%cal Rf5e6]}) 24... Nd5 {[%emt 0:00:30]} 25. Kf2 {[%emt 0:00:30]} Kf7 {[%emt 0:00:30] An even fight not without its subleties.   Weighted Error Value: White=0.14 (very precise) /Black=0.15 (very precise)} 1/2-1/2

[Event "ITT 1st Parada Jamundi 2022"]
[Site "Jamundi Valle"]
[Date "2022.12.08"]
[Round "5.2"]
[White "Avila Pavas, Santiago"]
[Black "Mirzoev, Azer"]
[Result "1/2-1/2"]
[ECO "C45"]
[WhiteElo "2461"]
[BlackElo "2462"]
[Annotator "TA"]
[PlyCount "70"]
[EventDate "2022.12.05"]
[EventType "swiss"]
[EventCountry "COL"]
[SourceTitle "playchess.com"]
[Source "ChessBase"]
[SourceQuality "1"]
[TimeControl "5400+30"]

{[%evp 17,70,0,0,-11,14,-6,7,0,0,0,0,0,0,0,0,0,6,12,13,0,0,0,0,0,0,-14,-6,0,0,-73,0,0,0,0,5,0,23,0,0,0,0,-47,-34,-46,-28,-25,0,0,0,0,0,0,0,0,0]} 1. e4 {[%emt 0:01:34]} e5 {[%emt 0:00:17]} 2. Nf3 {[%emt 0:00:07]} Nc6 {[%emt 0:00:08]} 3. d4 {[%emt 0:00:05]} exd4 {[%emt 0:00:11]} 4. Nxd4 {[%emt 0:00:06]} Nf6 {[%emt 0:00:16][%cal Bg8f6,Bf6d5,Bd5b6][%mdl 32]} 5. Nxc6 {[%emt 0:00:07]} bxc6 {[%emt 0:00:30]} 6. e5 {[%emt 0:00:10]} Qe7 {[%emt 0:00:59]} 7. Qe2 {[%emt 0:00:07]} Nd5 {[%emt 0:00:07]} 8. c4 {[%emt 0:00:06]} Nb6 {[%emt 0:00:11]} 9. b3 {[%emt 0:00:07]} a5 {[%emt 0:00:32]} 10. Ba3 {[%emt 0:00:13] Against a4. C45: Scotch Game.} Qg5 {[%emt 0:04:15]} (10... Qe6 {simplifies} 11. Bxf8 Rxf8 12. Nc3 a4) 11. Bxf8 {[%emt 0:03:49]} Qc1+ {[%emt 0:09:44]} (11... Kxf8 {simplifies} 12. Nc3 h5 13. h4 Qe7) 12. Qd1 {[%emt 0:00:09]} Qxd1+ {[%emt 0:00:04]} 13. Kxd1 {[%emt 0:00:08]} Rxf8 {[%emt 0:00:07]} 14. Nc3 {[%emt 0:00:54]} f6 {[%emt 0:00:27]} 15. exf6 {[%emt 0:00:32]} Rxf6 {[%emt 0:00:05]} 16. f3 {[%emt 0:05:30]} d5 {[%emt 0:05:08] [#]} 17. cxd5 $146 {[%emt 0:10:43]} ({Predecessor:} 17. c5 Nd7 18. Na4 Nf8 19. Bd3 Bf5 20. Re1+ Kd7 21. Nb2 Re8 22. Rxe8 Kxe8 23. Kd2 Bxd3 24. Nxd3 {½-½ (82) Cajkovski,Z (1713)-Herrmann,S (1955) Augsburg 2011}) 17... cxd5 {[%emt 0:00:09]} 18. Nb5 {[%emt 0:00:05]} Kd8 {[%emt 0:04:32]} 19. Rc1 {[%emt 0:00:11]} c6 {[%emt 0:04:43]} 20. Nd4 {[%emt 0:00:08]} Bd7 {[%emt 0:00:07]} 21. Bd3 {[%emt 0:21:30]} Ke7 {[%emt 0:02:59]} 22. Ke2 {[%emt 0:17:40]} ({Much weaker is} 22. Bxh7 g6 23. Re1+ Kf7 $17) 22... Kd6 {[%emt 0:04:46]} 23. Rhd1 {[%emt 0:00:06]} (23. Bxh7 $2 {perishes.} c5 24. Nc2 g6 $19) (23. Kf2 $11 {remains equal.}) 23... h6 {[%emt 0:12:31]} (23... c5 $17 24. Nc2 (24. Nb5+ Bxb5 25. Bxb5 d4 $15) 24... a4) 24. Kf2 $11 {[%emt 0:01:09]} Rf4 {[%emt 0:11:21]} 25. Bf1 {[%emt 0:01:06]} Raf8 {[%emt 0:05:58]} 26. Rd2 {[%emt 0:03:21]} Nc8 {[%emt 0:06:18]} 27. Ne2 {[%emt 0:05:18]} Rb4 {[%emt 0:00:26]} 28. Nc3 {[%emt 0:00:04]} Nb6 {[%emt 0:01:18] Inhibits Na4.} 29. Bd3 {[%emt 0:07:11]} (29. Kg1 $11) 29... a4 $15 {[%emt 0:05:17]} 30. Bc2 {[%emt 0:05:24]} axb3 {[%emt 0:00:05]} (30... Bf5 $5 {[%cal Rf5c2]}) 31. axb3 {[%emt 0:00:05]} Bf5 {[%emt 0:02:28]} 32. Na2 $1 {[%emt 0:03:37] The position is equal.} Rb5 {[%emt 0:00:46]} 33. Nc3 {[%emt 0:00:16]} Rb4 {[%emt 0:00:10]} 34. Na2 $1 {[%emt 0:04:28]} Rb5 {[%emt 0:00:10]} 35. Nc3 {[%emt 0:01:13]} Rb4 {[%emt 0:00:06] Weighted Error Value: White=0.09 (flawless) /Black=0.07 (flawless)} 1/2-1/2

[Event "ITT 1st Parada Jamundi 2022"]
[Site "Jamundi Valle"]
[Date "2022.12.08"]
[Round "5.3"]
[White "Mora Munoz, Alejandro"]
[Black "Cardoso Cardoso, Jose Gabriel"]
[Result "0-1"]
[ECO "B90"]
[WhiteElo "1959"]
[BlackElo "2483"]
[Annotator "TA"]
[PlyCount "88"]
[EventDate "2022.12.05"]
[EventType "swiss"]
[EventCountry "COL"]
[SourceTitle "playchess.com"]
[Source "ChessBase"]
[SourceQuality "1"]
[TimeControl "5400+30"]

{[%evp 15,88,27,25,25,32,24,26,21,20,29,33,28,38,27,41,25,42,13,24,15,23,-23,-23,-77,-77,-62,-81,-105,-92,-131,-129,-129,-121,-223,-204,-212,-197,-189,-116,-111,-113,-110,-103,-101,-107,-90,-102,-177,-66,-47,0,0,-6,-7,0,0,0,0,0,0,0,0,8,0,0,0,0,0,0,-95,-112,-112,-112,-29997,-201]} 1. e4 {[%emt 0:01:26]} c5 {[%emt 0:01:41]} 2. Nf3 {[%emt 0:00:26]} d6 {[%emt 0:00:08]} 3. d4 {[%emt 0:00:06]} cxd4 {[%emt 0:00:03]} 4. Nxd4 {[%emt 0:00:10]} Nf6 {[%emt 0:00:06]} 5. Nc3 {[%emt 0:00:08]} a6 {[%emt 1:31:02]} 6. f3 {[%emt 0:00:25]} e5 {[%emt 0:00:00]} 7. Nb3 {[%emt 0:00:07]} Be6 {[%emt 0:00:00]} 8. Be3 {[%emt 0:00:07]} h5 {[%emt 0:00:00]} 9. Nd5 {[%emt 0:00:08] B90: Sicilian Najdorf: Unusual White 6th moves, 6 Be3 Ng4 and 6 Be3 e5.} Bxd5 {[%emt 0:00:00]} 10. exd5 {[%emt 0:00:07]} Nbd7 {[%emt 0:00:00]} 11. Qd2 {[%emt 0:01:38] White has an edge.} Qc7 {[%emt 0:00:00]} 12. Rc1 {[%emt 0:17:24] 12.0-0-0 gains popularity.} g6 {[%emt 0:00:00]} 13. Be2 {[%emt 0:01:38]} Bg7 {[%emt 0:00:00]} 14. O-O {[%emt 0:01:19]} b6 {[%emt 0:00:00][%cal Bb7b6,Bb6c5][%mdl 32]} 15. a4 {[%emt 0:06:32]} Qb7 {[%emt 0:00:00] [#]} 16. Rfd1 $146 {[%emt 0:03:23]} (16. c4 $5 {[%cal Ra4a5]}) ({Predecessor:} 16. c4 a5 17. f4 exf4 18. Bxf4 O-O 19. Bf3 Ne5 20. Nd4 Rfe8 21. Nc6 Nfd7 22. Bh6 {½-½ (53) Bjerre,J (2529)-Heinemann,T (2501) Germany 2021}) 16... O-O {[%emt 0:00:00]} 17. c3 {[%emt 0:09:18]} Kh7 {[%emt 0:00:00]} 18. Na1 {[%emt 0:03:54]} (18. h3 {deserves consideration.}) 18... Nc5 {[%emt 0:00:00]} 19. Bxc5 {[%emt 0:03:57]} (19. b4 $11 Nxa4 20. Nb3) 19... bxc5 $17 {[%emt 0:00:00]} 20. Rb1 {[%emt 0:00:15]} Rfe8 {[%emt 0:00:00]} 21. b4 {[%emt 0:05:31]} Bh6 {[%emt 0:00:00]} 22. Qd3 {[%emt 0:03:17]} e4 {[%emt 0:00:00]} 23. Qc4 {[%emt 0:05:19]} ({But not} 23. fxe4 $2 Qa7 24. Kf1 Nxe4 $19) 23... cxb4 {[%emt 0:00:00]} 24. cxb4 {[%emt 0:07:17]} (24. Kh1 $17 {was worth a try.}) 24... exf3 $1 $19 {[%emt 0:00:00]} 25. Bxf3 {[%emt 0:00:38] [#]} Rac8 $1 {[%emt 0:00:00]} 26. Qf1 {[%emt 0:03:12]} Rc3 {[%emt 0:00:00]} (26... Ne4 $19 27. Bxe4 Rxe4) 27. Kh1 $17 {[%emt 0:02:25]} Kg7 {[%emt 0:00:00]} 28. b5 {[%emt 0:03:10]} axb5 {[%emt 0:00:00]} 29. axb5 {[%emt 0:03:12]} Qb6 {[%emt 0:00:00]} 30. Nb3 {[%emt 0:01:53]} h4 {[%emt 0:00:00][%cal Oh4h3] Black is much more active.} 31. Nc1 {[%emt 0:05:14] Inhibits h3.} (31. h3 $17) 31... Re5 {[%emt 0:00:00]} ({Better is} 31... h3 $1 $19 {...Rc2 is the strong threat.} 32. gxh3 Rc5) 32. Nd3 {[%emt 0:04:20]} Re3 {[%emt 0:00:00][%cal Oh4h3,Be5e3,Be3c3,Bc3c2][%mdl 32]} 33. Nb2 $1 {[%emt 0:02:25]} Qc7 {[%emt 0:00:00]} 34. b6 $1 $36 {[%emt 0:01:53][%mdl 2048] White has some pressure.} Qxb6 {[%emt 0:00:00]} 35. Na4 {[%emt 0:00:45][%csl LRb6,LRc3]} Qc7 {[%emt 0:00:00] Threatens to win with ...Rc2.} 36. Nxc3 {[%emt 0:00:02]} Rxc3 {[%emt 0:00:00]} 37. Rd3 {[%emt 0:01:24]} Rc2 {[%emt 0:00:00][%cal Oh4h3]} 38. Rdb3 {[%emt 0:00:36] Against h3} Qc5 {[%emt 0:00:00]} 39. Qg1 {[%emt 0:02:13]} (39. h3 {looks sharper.} Bf4 40. Rd1 g5 41. Qe1) 39... Qc8 {[%emt 0:00:00]} 40. Qd4 {[%emt 0:00:50]} h3 {[%emt 0:03:05]} 41. Rf1 {[%emt 0:00:52]} Qa6 {[%emt 0:02:22]} 42. Rd3 {[%emt 0:01:14] [#]} (42. Rbb1 $11 {keeps the balance.}) 42... Bf4 $1 {[%emt 0:02:14][%mdl 64] Hoping for ...Be5. Deflection} 43. Qxf4 {[%emt 0:01:18] Black must now prevent Be4.} ({Not} 43. Be4 $2 Be5 44. Qg1 hxg2+ 45. Bxg2 Qxd3 $19) (43. Rfd1 Be5) 43... Qxd3 {[%emt 0:00:12][%cal Rd3f1]} 44. Qd4 $2 {[%emt 0:01:02][%mdl 8192]} Qa6 $2 {Weighted Error Value: White=0.26 (precise) /Black=0.08 (flawless)} (44... Qxf1+ {mates} 45. Qg1 Rc1 46. Qxf1 Rxf1#) 0-1

[Event "ITT 1st Parada Jamundi 2022"]
[Site "Jamundi Valle"]
[Date "2022.12.08"]
[Round "5.4"]
[White "Cori Quispe, Kevin Joel"]
[Black "Paredes Lagos, Anthony Javier"]
[Result "1/2-1/2"]
[ECO "B50"]
[WhiteElo "2469"]
[BlackElo "2230"]
[Annotator "TA"]
[PlyCount "92"]
[EventDate "2022.12.05"]
[EventType "swiss"]
[EventCountry "COL"]
[SourceTitle "playchess.com"]
[Source "ChessBase"]
[SourceQuality "1"]
[TimeControl "5400+30"]

{[%evp 14,92,0,0,12,13,8,0,0,0,31,29,24,40,37,38,44,39,56,60,49,45,30,41,52,71,70,60,91,85,152,144,162,155,185,176,289,292,271,218,264,249,250,262,309,300,317,317,459,454,394,443,437,428,385,410,1320,136,131,137,303,0,0,0,0,-8,-8,-8,-8,-8,0,0,0,0,0,0,0,0,0,-8,-8]} 1. e4 {[%emt 0:00:03]} c5 {[%emt 0:03:21]} 2. Nf3 {[%emt 0:00:08]} d6 {[%emt 0:01:03]} 3. c3 {[%emt 0:00:08]} Nf6 {[%emt 0:00:50]} 4. h3 {[%emt 0:00:08]} g6 {[%emt 0:02:02]} 5. Bd3 {[%emt 0:00:07]} Bg7 {[%emt 0:02:46]} 6. Bc2 {[%emt 0:00:08]} Nc6 {[%emt 0:05:03]} 7. O-O {[%emt 0:00:22] 7.d4 is the modern continuation.} O-O {[%emt 0:00:06]} 8. d4 {[%emt 0:00:11]} d5 {[%emt 0:08:12] B50: Sicilian: 2...d6, Miscellaneous.} 9. e5 {[%emt 0:13:49]} Ne4 {[%emt 0:01:36]} 10. Qe2 {[%emt 0:02:38]} cxd4 {[%emt 0:01:51]} 11. cxd4 {[%emt 0:00:06] [#]} Nb4 $146 {[%emt 0:00:58]} ({Predecessor:} 11... Qb6 12. Rd1 Nb4 13. Bb3 Be6 14. Ng5 Nxg5 15. Bxg5 f6 16. Bf4 Rfe8 17. Nc3 Rad8 18. Na4 Qa6 {½-½ (33) Steyer,B (2169)-Wilhelm,J (2164) Germany 2010}) 12. Bb3 {[%emt 0:13:13]} b6 {[%emt 0:02:17]} 13. Rd1 {[%emt 0:02:44]} Ba6 {[%emt 0:06:05]} 14. Qe3 {[%emt 0:00:41]} Rc8 {[%emt 0:01:22][%cal Ob4d3]} 15. Nc3 {[%emt 0:13:30]} Nxc3 {[%emt 0:00:26]} 16. bxc3 {[%emt 0:00:04]} Nc6 {[%emt 0:00:05]} 17. h4 {[%emt 0:04:19][%cal Oh4h5]} e6 {[%emt 0:24:57]} 18. Ba3 {[%emt 0:06:21]} Re8 {[%emt 0:00:40]} 19. Ba4 {[%emt 0:00:16]} b5 {[%emt 0:07:41]} 20. Bb3 {[%emt 0:00:06]} Qa5 {[%emt 0:02:20]} 21. Bc5 {[%emt 0:01:09]} Qc7 {[%emt 0:08:00]} ({Black should try} 21... b4) 22. Re1 $16 {[%emt 0:02:03] White is more active.} Na5 {[%emt 0:03:00] Prevents h5.} 23. h5 {[%emt 0:01:22]} Qd7 {[%emt 0:03:12]} 24. Nh2 {[%emt 0:04:40]} Rxc5 {[%emt 0:07:04]} (24... Nc4 $142 25. Bxc4 dxc4) 25. dxc5 $18 {[%emt 0:00:05]} Qe7 {[%emt 0:01:38]} 26. hxg6 {[%emt 0:03:53]} hxg6 {[%emt 0:02:02]} 27. Ng4 {[%emt 0:01:51]} Rc8 {[%emt 0:00:18]} 28. Qf4 {[%emt 0:00:10]} Rxc5 {[%emt 0:01:00]} 29. Re3 {[%emt 0:01:16]} Bb7 {[%emt 0:03:13]} 30. Rh3 {[%emt 0:01:40] Nf6+ is the strong threat.} Nc6 {[%emt 0:00:47]} (30... Nc4 {keeps fighting.} 31. Bc2 Na3 32. Nf6+ Kf8) 31. Re1 {[%emt 0:09:38]} a5 {[%emt 0:00:15]} 32. a3 {[%emt 0:04:33]} b4 {[%emt 0:01:06]} 33. axb4 {[%emt 0:08:15]} (33. cxb4 axb4 34. Nf6+ Kf8 35. axb4 Rb5 $18) 33... axb4 {[%emt 0:00:01]} 34. Ree3 {[%emt 0:00:14]} (34. cxb4 Rb5 35. Nf6+ Kf8 $18) 34... bxc3 {[%emt 0:01:26] [#]} (34... Nxe5 $142 35. Nxe5 bxc3 36. Rxc3 g5) 35. Rxc3 $2 {[%emt 0:00:13]} (35. Rh7 $3 $18 {[%mdl 512] and the rest is easy. Threatening mate with Reh3.} Kxh7 (35... Bxe5 36. Nxe5) 36. Nf6+ Qxf6 37. exf6) 35... Rxc3 $16 {[%emt 0:00:19]} 36. Rxc3 {[%emt 0:00:04] Hoping for Ba4.} Qa3 {[%emt 0:00:25] [#]} (36... d4 $16 37. Nf6+ Kf8) 37. Re3 $2 {[%emt 0:01:16]} (37. Nf6+ Kf8 38. Kh2 d4 $18) (37. Rf3 $1 $18 Qe7 38. Nf6+ Bxf6 39. exf6 (39. Qxf6 Qxf6 40. exf6 Ne5 $16)) 37... Qc1+ $11 {[%emt 0:00:28] The position is equal.} 38. Kh2 {[%emt 0:00:17]} d4 $36 {[%emt 0:00:24][%mdl 2048] Black has good play.} 39. Nf6+ {[%emt 0:07:06][%cal Bg4f6,Bf6h5,Bh5g7,Bg7e6][%mdl 32]} Kf8 $1 {[%emt 0:00:03]} (39... Bxf6 40. exf6 Qc5 {[#]} 41. Rxe6 $1 {[%mdl 512]} fxe6 42. Bxe6+ Kh7 43. Qc7+ Kh6 44. Qg7+ (44. Qxb7 Qh5+ 45. Kg1 Qd1+ 46. Kh2 Qh5+ 47. Kg1 Qd1+ 48. Kh2 Qh5+ $11) 44... Kg5 45. f7 $18 (45. Qxb7 Qe5+ 46. g3 Qxe6 $11)) 40. Bxe6 {[%emt 0:00:06] Dancing on a razor blade.} fxe6 {[%emt 0:00:55]} (40... dxe3 $2 41. Nd7+ Ke8 42. Qxf7+ (42. Bxf7+ $2 {too greedy.} Kd8 $19) 42... Kd8 43. Nc5 (43. Nf6 Nxe5 44. Qe8+ Kc7 $11) 43... Bxe5+ 44. g3 Bxg3+ 45. Kg2 (45. Kxg3 Qg1+ 46. Kh3 Qf1+ 47. Kg3 Qxf2+ 48. Qxf2 exf2 $11) (45. fxg3 Qb2+ 46. Kh3 Qh8+ 47. Kg2 Qb2+ 48. Kh3 Qh8+ 49. Kg2 Qb2+ 50. Kh3 $11) 45... Ne7+ 46. Nxb7+ (46. Kxg3 $2 Qxc5 47. Qf8+ Kc7 $19) 46... Kc7 47. Qxe7+ $18) 41. Nh5+ {[%emt 0:00:04]} Kg8 {[%emt 0:00:44][%cal Og6h5]} (41... Ke7 {seems wilder.} 42. Nxg7 dxe3 43. Qf6+ Kd7) 42. Nxg7 {[%emt 0:00:53]} dxe3 {[%emt 0:00:09]} (42... Bc8 43. Ne8 $18) 43. Nxe6 {[%emt 0:00:11] White threatens Qf8+ and mate.} Qa3 {[%emt 0:00:31] Against Qf8+. Threatens to win with ...Qe7.} 44. Qf6 {[%emt 0:01:33][%csl Ge6][%cal Rf6g7]} (44. Qxe3 $2 {loses.} Qxe3 45. fxe3 Nxe5 $19) 44... Qe7 {[%emt 0:00:02] Inhibits Qg7+. ( -> ...Qxf6)} 45. Qxg6+ {[%emt 0:00:12]} (45. fxe3 $2 {perishes.} Qxf6 46. exf6 Kf7 $19) 45... Kh8 {[%emt 0:00:01]} 46. Qh6+ {[%emt 0:01:06]} Qh7 {[%emt 0:02:46] Blacks defense is rewarded with a draw.   Weighted Error Value: White=0.22 (precise) /Black=0.25 (precise)} 1/2-1/2

[Event "ITT 1st Parada Jamundi 2022"]
[Site "Jamundi Valle"]
[Date "2022.12.08"]
[Round "5.5"]
[White "Cruz, Cristhian"]
[Black "Rios, Cristhian Camilo"]
[Result "1/2-1/2"]
[ECO "E11"]
[WhiteElo "2552"]
[BlackElo "2456"]
[Annotator "TA"]
[PlyCount "46"]
[EventDate "2022.12.05"]
[EventType "swiss"]
[EventCountry "COL"]
[SourceTitle "playchess.com"]
[Source "ChessBase"]
[SourceQuality "1"]
[TimeControl "5400+30"]

{[%evp 13,46,0,3,12,5,7,20,0,0,0,0,0,0,7,11,0,0,17,16,0,12,-8,0,-27,0,-26,52,-1,57,43,36,20,25,12,71]} 1. d4 {[%emt 0:01:04]} d5 {[%emt 0:01:22]} 2. c4 {[%emt 0:00:57]} e6 {[%emt 0:00:40]} 3. Nf3 {[%emt 0:00:22]} Nf6 {[%emt 0:00:27]} 4. g3 {[%emt 0:00:40]} Bb4+ {[%emt 0:01:12]} 5. Bd2 {[%emt 0:02:40]} Be7 {[%emt 0:00:37]} 6. Bg2 {[%emt 0:01:58]} O-O {[%emt 0:02:40]} 7. O-O {[%emt 0:00:08]} c6 {[%emt 0:00:39][%cal Bc7c6,Bc6b5,Bb5c4][%mdl 32]} 8. Bc3 {[%emt 0:02:17] E11: Bogo-Indian.} dxc4 {[%emt 0:02:55]} 9. a4 {[%emt 0:01:10]} b5 {[%emt 0:07:12]} 10. axb5 {[%emt 0:03:50]} cxb5 {[%emt 0:00:42]} 11. Ne5 {[%emt 0:04:31] Against a5} Nd5 {[%emt 0:00:31]} 12. Ba5 {[%emt 0:00:07]} Qe8 {[%emt 0:04:31]} 13. b3 {[%emt 0:05:58]} Nc6 {[%emt 0:11:25]} 14. bxc4 {[%emt 0:30:14]} bxc4 {[%emt 0:01:29]} 15. Nxc6 {[%emt 0:00:21]} Qxc6 {[%emt 0:00:08]} 16. e4 {[%emt 0:00:47]} Nf6 {[%emt 0:00:37]} 17. Nc3 {[%emt 0:02:06][%mdl 1024] White has compensation.} Rb8 {[%emt 0:05:38]} 18. Qd2 {[%emt 0:07:44] [#]} Qd7 $146 {[%emt 0:06:54]} ({Predecessor:} 18... Rb3 19. Rfd1 Bb7 20. d5 exd5 21. exd5 Qc5 22. d6 Bd8 23. Bxd8 Rxd8 24. Bxb7 Rxb7 {½-½ (80) Svane,R (2640)-Engel,L (2557) Magdeburg 2022}) 19. Rfd1 {[%emt 0:03:12]} Bb7 {[%emt 0:03:12]} ({Better is} 19... Rb3 $11) 20. d5 {[%emt 0:07:37]} (20. Qf4 $14) 20... e5 {[%emt 0:08:10]} ({Black should play} 20... exd5 $11 21. Nxd5 Bxd5 22. exd5 Bc5) 21. d6 {[%emt 0:09:38] [#] And now Bc7 would win.} Bd8 {[%emt 0:00:12] Prevents Bc7.} 22. Bxd8 {[%emt 0:08:35]} Rfxd8 {[%emt 0:00:10]} 23. Rxa7 {[%emt 0:00:04]} Ra8 {[%emt 0:07:58] Weighted Error Value: White=0.12 (very precise) /Black=0.20 (precise)} (23... Ne8 $11) 1/2-1/2

[Event "ITT 1st Parada Jamundi 2022"]
[Site "Jamundi Valle"]
[Date "2022.12.08"]
[Round "5.6"]
[White "Campos Gomez, Manuel"]
[Black "Lopez Rayo, Santiago"]
[Result "1/2-1/2"]
[ECO "E68"]
[WhiteElo "2322"]
[BlackElo "2300"]
[Annotator "TA"]
[PlyCount "73"]
[EventDate "2022.12.05"]
[EventType "swiss"]
[EventCountry "COL"]
[SourceTitle "playchess.com"]
[Source "ChessBase"]
[SourceQuality "1"]
[TimeControl "5400+30"]

{[%evp 19,73,28,52,-1,6,0,30,0,2,0,0,0,0,0,12,8,6,14,10,7,20,20,25,0,33,32,58,59,43,40,36,50,93,94,102,114,154,152,229,113,104,0,217,0,108,77,65,14,7,22,44,-241,0,-500,49,-64]} 1. Nf3 {[%emt 0:02:50]} Nf6 {[%emt 0:00:08]} 2. g3 {[%emt 0:01:24]} g6 {[%emt 0:00:09]} 3. Bg2 {[%emt 0:00:02]} Bg7 {[%emt 0:00:10]} 4. O-O {[%emt 0:00:04]} O-O {[%emt 0:00:09]} 5. c4 {[%emt 0:00:03]} d6 {[%emt 0:00:09]} 6. d4 {[%emt 0:00:05]} Nbd7 {[%emt 0:00:24]} 7. Nc3 {[%emt 0:00:07]} e5 {[%emt 0:00:32]} 8. e4 {[%emt 0:00:18]} exd4 {[%emt 0:01:54]} 9. Nxd4 {[%emt 0:00:07]} c6 {[%emt 0:00:19]} 10. b3 {[%emt 0:03:12]} Nc5 {[%emt 0:03:42]} 11. Bb2 {[%emt 0:02:11] E68: King's Indian: Fianchetto: 6...Nbd7 7 0-0 e5 8 e4.} ({Better is} 11. f3 $14) 11... a5 {[%emt 0:01:50]} 12. Qc2 {[%emt 0:02:41]} Qb6 {[%emt 0:01:38][%cal Oa5a4]} 13. Rad1 {[%emt 0:08:00] White has an edge.} a4 {[%emt 0:11:30] [#]} 14. Bc1 $146 {[%emt 0:09:26][%cal Bb2c1,Bc1e3,Be3d2][%mdl 32]} (14. bxa4 Qb4 $15) ({Predecessor:} 14. h3 Nfd7 15. Nce2 Ne5 16. Bc1 Re8 17. Kh2 axb3 18. axb3 Na6 19. Be3 Nb4 20. Qb1 {1-0 (51) Matlakov,M (2689)-Goganov,A (2591) Vladivostok 2014}) 14... Ng4 {[%emt 0:09:31]} 15. Nce2 {[%emt 0:09:26]} axb3 {[%emt 0:04:38]} 16. axb3 {[%emt 0:00:19]} Na6 {[%emt 0:02:09]} 17. h3 {[%emt 0:05:35]} Nb4 {[%emt 0:01:38]} 18. Qb1 {[%emt 0:00:23]} Ne5 {[%emt 0:04:58]} 19. Be3 {[%emt 0:05:13][%cal Od4f5] Nf5! is the strong threat.} Qc7 {[%emt 0:12:27]} 20. Bd2 {[%emt 0:08:13]} Qb6 {[%emt 0:07:09]} 21. Be3 {[%emt 0:01:13][%cal Od4e6] Black must now prevent Ne6!} Qc7 {[%emt 0:04:43]} 22. Rd2 {[%emt 0:10:17]} Ra3 {[%emt 0:04:12]} 23. Rfd1 {[%emt 0:02:39]} Qa5 {[%emt 0:03:11]} 24. Nc2 {[%emt 0:02:37] Inhibits b5.} Nxc2 {[%emt 0:01:03]} 25. Qxc2 {[%emt 0:00:01]} Qb4 {[%emt 0:05:01]} 26. Nc1 {[%emt 0:00:07]} ({Of course not} 26. Rxd6 Qxb3 27. Qxb3 Rxb3 $15) 26... Be6 {[%emt 0:03:05]} 27. Rxd6 {[%emt 0:07:15]} b5 {[%emt 0:03:23]} (27... Bd5 $2 28. cxd5 $1 Qxd6 29. Bc5 $18) 28. cxb5 {[%emt 0:02:23]} Qxb5 {[%emt 0:00:08] [#]} (28... Bxb3 $16 29. Nxb3 Rxb3) 29. Qc5 {[%emt 0:05:02]} (29. Bc5 $1 $18 {[%cal Rc5a3] is more deadly.} Rxb3 30. Rd8 (30. Rxe6 Rb2 $11)) 29... Ra5 $16 {[%emt 0:06:40]} 30. Qc2 {[%emt 0:03:18]} (30. Qxb5 $16 Rxb5 31. f4) 30... Ra3 $18 {[%emt 0:09:00][%cal Re6b3] [#]} 31. Qc5 {[%emt 0:06:16]} (31. Bc5 $1 $18 {[%cal Rc5a3] and White stays clearly on top.} Rxb3 32. Rd8 (32. Rxe6 Rb2 $11)) 31... Ra5 $16 {[%emt 0:00:00]} 32. b4 {[%emt 0:00:23]} (32. Qxb5 {simplifies} Rxb5 33. f4 Bxb3 34. Nxb3 Rxb3 35. Bc5) 32... Raa8 {[%emt 0:00:00]} 33. Qxb5 {[%emt 0:00:37]} (33. Nd3 $14) 33... cxb5 $11 {[%emt 0:00:00]} 34. Bc5 {[%emt 0:01:03]} Rfc8 {[%emt 0:02:00]} 35. R6d3 $2 {[%emt 0:05:10][%mdl 8192]} Nc4 $2 (35... Nxd3 $19 36. Nxd3 Rd8) 36. Rd6 $2 {[%mdl 8192]} Ne5 $2 (36... Nxd6 $19 37. e5 Nc4 38. Bxa8 Rxa8) 37. Bf1 {[%emt 0:01:00] Never resign too early!   Weighted Error Value: White=0.71/Black=0.34} ({White should try} 37. Nd3 $14) 1/2-1/2